[Event "Moscow-Open 2021_A"]
[Site "Moscow, Russia"]
[Date "2021.02.24"]
[Round "5.6"]
[White "Lobanov, Sergei"]
[Black "Ibadov, Dashgyn"]
[Result "1-0"]
[ECO "A07"]
[WhiteElo "2516"]
[BlackElo "2282"]
[Annotator "zimin"]
[PlyCount "91"]
[EventDate "2021.??.??"]
[TimeControl "90+30"]
[WhiteClock "0:11:47"]
[BlackClock "0:04:03"]

{[%evp 0,87,23,18,16,-5,41,9,9,-6,22,-8,-8,6,-2,2,43,36,49,40,29,3,12,12,62,15,
29,0,-6,32,41,-28,-4,8,45,25,63,56,50,50,14,1,1,-15,-14,-12,11,-51,-18,-18,-38,
-38,-38,-88,-88,-33,-33,-57,-57,-57,20,0,0,0,0,0,0,-3,15,23,14,17,10,0,33,0,0,
0,0,6,69,44,151,102,125,190,248,245,400,329]} 1. Nf3 {[%emt 0:00:00]} d5 {
[%emt 0:00:00]} 2. g3 {[%emt 0:00:00]} Nd7 {[%emt 0:00:00]} 3. Bg2 {[%emt 0:00:
00]} e5 {[%emt 0:00:00]} 4. O-O {[%emt 0:00:00]} Ngf6 {[%emt 0:00:00]} 5. d3 {
[%emt 0:00:00]} Bd6 {[%emt 0:00:00]} 6. Nbd2 {[%emt 0:00:00]} O-O {[%emt 0:00:
00]} 7. e4 {[%emt 0:00:00]} d4 {[%emt 0:00:00]} 8. Nc4 {[%emt 0:00:00]} b5 {
[%emt 0:00:00]} 9. Nxd6 {[%emt 0:00:00]} cxd6 {[%emt 0:00:00]} 10. Nh4 {
[%emt 0:00:00]} a5 {[%emt 0:00:00]} 11. f4 {[%emt 0:00:00]} b4 {[%emt 0:00:00]}
12. g4 {[%emt 0:00:00]} Nh5 {[%emt 0:00:00]} 13. Nf5 {[%emt 0:00:00]} Nxf4 {
[%emt 0:00:00]} 14. Bxf4 {[%emt 0:00:00]} exf4 {[%emt 0:00:00]} 15. Rxf4 {
[%emt 0:00:00]} Ne5 {[%emt 0:00:00]} 16. Qd2 {[%emt 0:00:00]} Ra7 {[%emt 0:00:
00]} 17. h3 {[%emt 0:00:00]} Bxf5 {[%emt 0:00:00]} 18. exf5 {[%emt 0:00:00]}
Qf6 {[%emt 0:00:00]} 19. Qf2 {[%emt 0:00:00]} Rc7 {[%emt 0:00:00]} 20. Re1 {
[%emt 0:00:00]} Rfc8 {[%emt 0:00:00]} 21. Re2 {[%emt 0:00:00]} h5 {[%emt 0:00:
00]} 22. gxh5 {[%emt 0:00:00]} Qg5 {[%emt 0:00:00]} 23. f6 {[%emt 0:00:00]}
Rxc2 {[%emt 0:00:00]} 24. Rxc2 {[%emt 0:00:00]} Rxc2 {[%emt 0:00:00]} 25. Qxc2
{[%emt 0:00:00]} Qxf4 {[%emt 0:00:00]} 26. Qc8+ {[%emt 0:00:00]} Kh7 {[%emt 0:
00:00]} 27. Be4+ {[%emt 0:00:00]} g6 {[%emt 0:00:00]} 28. hxg6+ {[%emt 0:00:00]
} Nxg6 {[%emt 0:00:00]} 29. Qc7 {[%emt 0:00:00]} Qg3+ {[%emt 0:00:00]} 30. Kf1
{[%emt 0:00:00]} Qxh3+ {[%emt 0:00:00]} 31. Ke1 {[%emt 0:00:00]} Qh4+ {[%emt 0:
00:00]} 32. Kd1 {[%emt 0:00:00]} Qxf6 {[%emt 0:00:00]} 33. Qxa5 {[%emt 0:00:00]
} Kg7 {[%emt 0:00:00]} 34. Qxb4 {[%emt 0:00:00]} Nf4 {[%emt 0:00:00]} 35. Qd2 {
[%emt 0:00:01]} d5 {[%emt 0:01:28]} 36. Bf3 {[%emt 0:02:28]} Qf5 {[%emt 0:01:
10]} 37. Kc2 {[%emt 0:00:07]} Qc8+ {[%emt 0:00:55]} 38. Kb1 {[%emt 0:00:03]}
Qf5 {[%emt 0:00:11]} 39. Be2 {[%emt 0:00:38]} Ng2 {[%emt 0:07:51]} 40. a4 {
[%emt 0:01:24]} Ne3 {[%emt 0:00:48]} 41. a5 {[%emt 0:03:51]} Qc8 {[%emt 0:00:
51]} 42. Qc1 {[%emt 0:02:19]} Qa6 {[%emt 0:02:13]} 43. Qc5 {[%emt 0:00:13]} Qf6
{[%emt 0:00:01]} 44. a6 {[%emt 0:00:59]} Qf2 {[%emt 0:03:11]} 45. a7 {[%emt 0:
00:32]} Qe1+ {[%emt 0:01:18]} 46. Ka2 {[%emt 0:00:08]} 1-0

[Event "Moscow-Open 2021_A"]
[Site "Moscow, Russia"]
[Date "2021.02.25"]
[Round "6.1"]
[White "Makarian, Rudik"]
[Black "Bocharov, Ivan"]
[Result "1/2-1/2"]
[ECO "D37"]
[WhiteElo "2458"]
[BlackElo "2568"]
[Annotator "zimin"]
[PlyCount "108"]
[EventDate "2021.??.??"]
[TimeControl "90+30"]
[WhiteClock "0:30:01"]
[BlackClock "0:43:17"]

{[%evp 0,108,16,28,26,-14,-23,-23,-14,0,22,13,9,9,65,13,53,12,47,25,38,-9,18,
-44,9,-39,-13,6,24,36,40,32,42,42,100,89,77,89,73,72,57,53,56,53,57,56,65,49,
59,94,102,102,113,84,113,73,103,112,111,106,107,107,110,110,110,112,132,112,
123,123,120,118,129,84,87,70,87,84,97,97,95,105,110,110,103,103,124,128,218,
197,258,258,261,258,298,331,331,337,337,337,337,337,337,337,337,337,337,337,
337,337,337]} 1. d4 {[%emt 0:00:00]} d5 {[%emt 0:00:00]} 2. c4 {[%emt 0:00:00]}
e6 {[%emt 0:00:00]} 3. Nf3 {[%emt 0:00:00]} Nf6 {[%emt 0:00:00]} 4. Nc3 {
[%emt 0:00:00]} Be7 {[%emt 0:00:00]} 5. Bf4 {[%emt 0:00:00]} O-O {[%emt 0:00:
00]} 6. e3 {[%emt 0:00:00]} Nbd7 {[%emt 0:00:00]} 7. a3 {[%emt 0:00:00]} c5 {
[%emt 0:00:00]} 8. cxd5 {[%emt 0:00:00]} Nxd5 {[%emt 0:00:00]} 9. Nxd5 {
[%emt 0:00:00]} exd5 {[%emt 0:00:00]} 10. dxc5 {[%emt 0:00:00]} Nxc5 {[%emt 0:
00:00]} 11. Be5 {[%emt 0:00:00]} Bf5 {[%emt 0:00:00]} 12. Rc1 {[%emt 0:00:00]}
Ne6 {[%emt 0:00:00]} 13. Bd3 {[%emt 0:00:00]} Bxd3 {[%emt 0:00:00]} 14. Qxd3 {
[%emt 0:00:00]} Bf6 {[%emt 0:00:00]} 15. O-O {[%emt 0:00:00]} Bxe5 {[%emt 0:00:
00]} 16. Nxe5 {[%emt 0:00:00]} d4 {[%emt 0:00:00]} 17. Rfd1 {[%emt 0:00:00]}
Re8 {[%emt 0:00:00]} 18. exd4 {[%emt 0:00:00]} Qxd4 {[%emt 0:00:00]} 19. Qxd4 {
[%emt 0:00:00]} Nxd4 {[%emt 0:00:00]} 20. Rxd4 {[%emt 0:00:00]} Rxe5 {[%emt 0:
00:00]} 21. Rd7 {[%emt 0:00:00]} Rb5 {[%emt 0:00:00]} 22. g3 {[%emt 0:00:00]}
Rf8 {[%emt 0:00:00]} 23. Rcc7 {[%emt 0:00:00]} b6 {[%emt 0:00:00]} 24. Rxa7 {
[%emt 0:00:00]} Rxb2 {[%emt 0:00:00]} 25. Rdb7 {[%emt 0:00:00]} g5 {[%emt 0:00:
00]} 26. Ra6 {[%emt 0:00:00]} Rc8 {[%emt 0:00:00]} 27. Raxb6 {[%emt 0:00:00]}
Rc1+ {[%emt 0:00:00]} 28. Kg2 {[%emt 0:00:00]} Rxb6 {[%emt 0:00:00]} 29. Rxb6 {
[%emt 0:00:00]} Ra1 {[%emt 0:00:00]} 30. Ra6 {[%emt 0:00:00]} g4 {[%emt 0:00:
00]} 31. Ra4 {[%emt 0:00:00]} Kf8 {[%emt 0:00:00]} 32. h4 {[%emt 0:00:00]} Ke7
{[%emt 0:00:00]} 33. Re4+ {[%emt 0:00:00]} Kf6 {[%emt 0:00:00]} 34. Rf4+ {
[%emt 0:00:00]} Ke7 {[%emt 0:00:00]} 35. Re4+ {[%emt 0:00:00]} Kf6 {[%emt 0:00:
00]} 36. Re3 {[%emt 0:00:00]} Ra2 {[%emt 0:00:00]} 37. Kf1 {[%emt 0:00:00]} Kf5
{[%emt 0:00:00]} 38. Rb3 {[%emt 0:00:00]} h5 {[%emt 0:00:00]} 39. Rb5+ {
[%emt 0:00:00]} Kg6 {[%emt 0:00:00]} 40. Rg5+ {[%emt 0:00:00]} Kh6 {[%emt 0:00:
00]} 41. Ra5 {[%emt 0:00:00]} Kg6 {[%emt 0:00:00]} 42. a4 {[%emt 0:00:00]} f6 {
[%emt 0:00:00]} 43. Ra8 {[%emt 0:00:00]} Kg7 {[%emt 0:00:00]} 44. a5 {[%emt 0:
00:00]} Kg6 {[%emt 0:00:00]} 45. a6 {[%emt 0:00:00]} Kh7 {[%emt 0:00:00]} 46.
Ke1 {[%emt 0:00:00]} Kg7 {[%emt 0:00:00]} 47. a7 {[%emt 0:00:00]} Ra1+ {
[%emt 0:00:00]} 48. Kd2 {[%emt 0:00:00]} Ra6 {[%emt 0:00:00]} 49. Kc3 {[%emt 0:
00:00]} Ra1 {[%emt 0:00:00]} 50. Kd4 {[%emt 0:00:00]} Ra2 {[%emt 0:00:00]} 51.
Kd5 {[%emt 0:00:00]} Rd2+ {[%emt 0:00:00]} 52. Kc6 {[%emt 0:00:00]} Rc2+ {
[%emt 0:00:00]} 53. Kd6 {[%emt 0:00:00]} Rd2+ {[%emt 0:00:00]} 54. Ke6 {
[%emt 0:00:00]} Re2+ {[%emt 0:00:00]} 1/2-1/2

[Event "Moscow-Open 2021_A"]
[Site "Moscow, Russia"]
[Date "2021.02.25"]
[Round "6.2"]
[White "Rozum, Ivan"]
[Black "Kukhmazov, Arsen"]
[Result "1/2-1/2"]
[ECO "B10"]
[WhiteElo "2546"]
[BlackElo "2442"]
[Annotator "zimin"]
[PlyCount "139"]
[EventDate "2021.??.??"]
[TimeControl "90+30"]
[WhiteClock "0:02:11"]
[BlackClock "0:04:14"]

{[%evp 0,38,26,14,63,69,77,64,32,34,8,9,27,-11,-7,-32,4,6,-2,-29,-41,-87,-8,-8,
-7,-15,-30,-48,-47,-19,0,-34,-22,-21,-2,-41,3,6,34,44,46]} 1. e4 {[%emt 0:00:
00]} c6 {[%emt 0:00:00]} 2. Nf3 {[%emt 0:00:00]} d5 {[%emt 0:00:00]} 3. d3 {
[%emt 0:00:00]} dxe4 {[%emt 0:00:00]} 4. dxe4 {[%emt 0:00:00]} Qxd1+ {[%emt 0:
00:00]} 5. Kxd1 {[%emt 0:00:00]} Nf6 {[%emt 0:00:00]} 6. Nbd2 {[%emt 0:00:00]}
Nbd7 {[%emt 0:00:00]} 7. Ne1 {[%emt 0:00:00]} Ng4 {[%emt 0:00:00]} 8. Nd3 {
[%emt 0:00:00]} g6 {[%emt 0:00:00]} 9. Nc4 {[%emt 0:00:00]} Bg7 {[%emt 0:00:00]
} 10. Bf4 {[%emt 0:00:00]} Nb6 {[%emt 0:00:00]} 11. Nxb6 {[%emt 0:00:00]} axb6
{[%emt 0:00:00]} 12. f3 {[%emt 0:00:00]} Nf6 {[%emt 0:00:00]} 13. c3 {[%emt 0:
00:00]} Be6 {[%emt 0:00:00]} 14. Kc2 {[%emt 0:00:00]} O-O {[%emt 0:00:00]} 15.
Be2 {[%emt 0:00:00]} Nd7 {[%emt 0:00:00]} 16. Be3 {[%emt 0:00:00]} f5 {[%emt 0:
00:00]} 17. a3 {[%emt 0:00:00]} Rfd8 {[%emt 0:00:00]} 18. Rad1 {[%emt 0:00:00]}
Kf8 {[%emt 0:00:00]} 19. exf5 {[%emt 0:00:00]} gxf5 {[%emt 0:00:00]} 20. g4 {
[%emt 0:00:00]} fxg4 {[%emt 0:00:00]} 21. fxg4 {[%emt 0:00:00]} b5 {[%emt 0:00:
00]} 22. Nf4 {[%emt 0:00:00]} Bf7 {[%emt 0:00:00]} 23. Bd3 {[%emt 0:00:00]} Ne5
{[%emt 0:00:00]} 24. Bf5 {[%emt 0:00:00]} Nc4 {[%emt 0:00:00]} 25. Bc1 {
[%emt 0:00:00]} Kg8 {[%emt 0:00:00]} 26. Ne6 {[%emt 0:00:00]} Rd6 {[%emt 0:01:
11]} 27. Rhe1 {[%emt 0:00:00]} Rxd1 {[%emt 0:07:34]} 28. Rxd1 {[%emt 0:00:00]}
Nd6 {[%emt 0:01:22]} 29. Bg5 {[%emt 0:00:00]} Bxe6 {[%emt 0:00:48]} 30. Bxe6+ {
[%emt 0:00:00]} Kf8 {[%emt 0:00:05]} 31. Rf1+ {[%emt 0:01:17]} Ke8 {[%emt 0:00:
03]} 32. Re1 {[%emt 0:00:05]} h6 {[%emt 0:03:48]} 33. Bf4 {[%emt 0:02:20]} Nf7
{[%emt 0:00:41]} 34. Bg3 {[%emt 0:04:53]} Bf6 {[%emt 0:00:20]} 35. h4 {[%emt 0:
03:02]} Ra4 {[%emt 0:00:22]} 36. Bc8 {[%emt 0:01:45]} Kd8 {[%emt 0:00:08]} 37.
Be6 {[%emt 0:01:50]} Nd6 {[%emt 0:00:16]} 38. Re3 {[%emt 0:01:05]} Kc7 {
[%emt 0:00:51]} 39. Bf5 {[%emt 0:00:46]} Kb6 {[%emt 0:00:55]} 40. Be6 {[%emt 0:
00:43]} Kc7 {[%emt 0:00:11]} 41. Re2 {[%emt 0:00:34]} Kb6 {[%emt 0:00:33]} 42.
Kd3 {[%emt 0:00:39]} Ra8 {[%emt 0:01:35]} 43. Bb3 {[%emt 0:00:46]} c5 {[%emt 0:
00:22]} 44. Be6 {[%emt 0:00:58]} Kc6 {[%emt 0:00:11]} 45. Kc2 {[%emt 0:00:13]}
Ra4 {[%emt 0:00:21]} 46. Re3 {[%emt 0:01:05]} b6 {[%emt 0:01:28]} 47. Re2 {
[%emt 0:01:08]} Re4 {[%emt 0:00:50]} 48. Rxe4 {[%emt 0:01:11]} Nxe4 {[%emt 0:
00:01]} 49. Bf4 {[%emt 0:00:25]} Bxh4 {[%emt 0:00:10]} 50. Bxh6 {[%emt 0:00:02]
} Bg5 {[%emt 0:00:50]} 51. Bxg5 {[%emt 0:00:46]} Nxg5 {[%emt 0:00:02]} 52. Bf5
{[%emt 0:00:12]} Kd5 {[%emt 0:00:22]} 53. Kd3 {[%emt 0:00:42]} e6 {[%emt 0:01:
16]} 54. Bg6 {[%emt 0:00:05]} e5 {[%emt 0:00:49]} 55. Be8 {[%emt 0:01:05]} b4 {
[%emt 0:00:17]} 56. cxb4 {[%emt 0:00:18]} cxb4 {[%emt 0:00:02]} 57. axb4 {
[%emt 0:00:10]} Kd6 {[%emt 0:00:53]} 58. Ba4 {[%emt 0:00:37]} Kd5 {[%emt 0:00:
20]} 59. Bb3+ {[%emt 0:00:06]} Kd6 {[%emt 0:00:03]} 60. Bc4 {[%emt 0:01:13]}
Kd7 {[%emt 0:00:26]} 61. Bd5 {[%emt 0:00:14]} Kd6 {[%emt 0:00:02]} 62. Bg2 {
[%emt 0:00:08]} Kd7 {[%emt 0:00:28]} 63. Ke3 {[%emt 0:00:45]} Ke6 {[%emt 0:00:
12]} 64. Bb7 {[%emt 0:00:21]} Ke7 {[%emt 0:00:59]} 65. Bd5 {[%emt 0:01:15]} Kd6
{[%emt 0:00:11]} 66. Bg2 {[%emt 0:00:05]} Ke6 {[%emt 0:00:07]} 67. Kd3 {
[%emt 0:00:12]} Kd6 {[%emt 0:00:04]} 68. Kc4 {[%emt 0:00:20]} Ne6 {[%emt 0:00:
12]} 69. Be4 {[%emt 0:00:28]} Ng5 {[%emt 0:00:05]} 70. Bg2 {[%emt 0:00:38]}
1/2-1/2

[Event "Moscow-Open 2021_A"]
[Site "Moscow, Russia"]
[Date "2021.02.25"]
[Round "6.3"]
[White "Maltsevskaya, Aleksandra"]
[Black "Stupak, Kirill"]
[Result "0-1"]
[ECO "B14"]
[WhiteElo "2327"]
[BlackElo "2492"]
[Annotator "zimin"]
[PlyCount "86"]
[EventDate "2021.??.??"]
[TimeControl "90+30"]
[WhiteClock "0:00:34"]
[BlackClock "0:01:05"]

{[%evp 0,44,30,20,77,72,66,77,60,13,-1,-1,9,32,20,28,29,22,22,14,22,-8,19,19,
23,18,13,13,13,-17,-53,-54,-55,-55,-52,-57,-48,-48,-47,-33,-31,-27,-28,-24,-37,
-37,-21]} 1. e4 {[%emt 0:00:00]} c6 {[%emt 0:00:00]} 2. d4 {[%emt 0:00:00]} d5
{[%emt 0:00:00]} 3. exd5 {[%emt 0:00:00]} cxd5 {[%emt 0:00:00]} 4. c4 {[%emt 0:
00:00]} Nf6 {[%emt 0:00:00]} 5. Nc3 {[%emt 0:00:00]} e6 {[%emt 0:00:00]} 6. Nf3
{[%emt 0:00:00]} Be7 {[%emt 0:04:04]} 7. Be2 O-O 8. O-O Nc6 9. a3 b6 {[%emt 0:
00:00]} 10. b4 {[%emt 0:35:25]} Ne4 {[%emt 0:00:00]} 11. Bb2 {[%emt 0:00:00]}
Nxc3 {[%emt 0:00:00]} 12. Bxc3 {[%emt 0:00:00]} dxc4 {[%emt 0:00:00]} 13. Bxc4
{[%emt 0:00:00]} Bf6 {[%emt 0:00:00]} 14. Qe2 {[%emt 0:00:00]} Bb7 {[%emt 0:00:
00]} 15. Rfd1 {[%emt 0:00:00]} Ne7 {[%emt 0:00:00]} 16. Rac1 {[%emt 0:00:00]}
Rc8 {[%emt 0:00:00]} 17. Ba6 {[%emt 0:00:00]} Bxa6 {[%emt 0:00:00]} 18. Qxa6 {
[%emt 0:00:00]} Rc7 {[%emt 0:00:00]} 19. Bd2 {[%emt 0:00:00]} Qc8 {[%emt 0:00:
00]} 20. Qd3 {[%emt 0:00:00]} Nd5 {[%emt 0:00:00]} 21. Rxc7 {[%emt 0:00:00]}
Qxc7 {[%emt 0:00:00]} 22. Rc1 {[%emt 0:00:00]} Qd7 {[%emt 0:00:00]} 23. Qa6 {
[%emt 0:00:00]} h6 {[%emt 0:00:00]} 24. h3 {[%emt 0:00:00]} Rd8 {[%emt 0:00:00]
} 25. Be3 {[%emt 0:00:00]} Rb8 {[%emt 0:00:00]} 26. Kf1 {[%emt 0:00:00]} Rb7 {
[%emt 0:00:00]} 27. Qd3 {[%emt 0:00:00]} Rc7 {[%emt 0:00:00]} 28. Rxc7 {
[%emt 0:00:00]} Qxc7 {[%emt 0:00:00]} 29. Qb5 {[%emt 0:00:00]} Qc2 {[%emt 0:02:
29]} 30. Kg1 {[%emt 0:00:00]} g5 {[%emt 0:04:29]} 31. Kh2 {[%emt 0:00:00]} Qc7+
{[%emt 0:02:33]} 32. Kg1 {[%emt 0:00:00]} Qc3 {[%emt 0:00:27]} 33. Bd2 {
[%emt 0:00:00]} Qxa3 {[%emt 0:01:21]} 34. Kh2 {[%emt 0:00:00]} Kg7 {[%emt 0:00:
56]} 35. Qd7 {[%emt 0:00:00]} Qd3 {[%emt 0:01:52]} 36. Qxa7 {[%emt 0:00:00]}
Bxd4 {[%emt 0:00:17]} 37. Qd7 {[%emt 0:00:00]} Bf6 {[%emt 0:00:38]} 38. Be3 {
[%emt 0:00:00]} Qe4 {[%emt 0:00:00]} 39. Qc6 {[%emt 0:00:00]} Qxb4 {[%emt 0:00:
52]} 40. Bd2 {[%emt 0:00:00]} Qc5 {[%emt 0:00:20]} 41. Qe8 {[%emt 0:00:00]}
Qxf2 {[%emt 0:00:35]} 42. Be1 {[%emt 0:00:00]} Qe2 {[%emt 0:00:33]} 43. Bd2 {
[%emt 0:00:00]} Ne3 {[%emt 0:00:29]} 0-1

[Event "Moscow-Open 2021_A"]
[Site "Moscow, Russia"]
[Date "2021.02.25"]
[Round "6.4"]
[White "Afanasiev, Nikita"]
[Black "Suleymenov, Alisher"]
[Result "1-0"]
[ECO "A60"]
[WhiteElo "2519"]
[BlackElo "2440"]
[Annotator "zimin"]
[PlyCount "87"]
[EventDate "2021.??.??"]
[TimeControl "90+30"]
[WhiteClock "0:07:18"]
[BlackClock "0:00:59"]

{[%evp 0,50,26,35,37,-23,4,-7,58,45,45,52,103,75,81,42,57,49,60,22,62,51,110,
70,80,81,83,76,91,69,102,95,109,109,118,13,98,97,97,111,128,158,158,187,215,
215,233,233,284,247,247,247,247]} 1. d4 {[%emt 0:00:00]} e6 {[%emt 0:00:00]} 2.
c4 {[%emt 0:00:00]} Nf6 {[%emt 0:00:00]} 3. Nc3 {[%emt 0:00:00]} c5 {[%emt 0:
00:00]} 4. d5 {[%emt 0:00:00]} d6 {[%emt 0:00:00]} 5. e4 {[%emt 0:00:00]} g6 {
[%emt 0:00:00]} 6. Bf4 {[%emt 0:00:00]} e5 {[%emt 0:00:00]} 7. Bg5 {[%emt 0:00:
00]} h6 {[%emt 0:00:00]} 8. Bd2 {[%emt 0:00:00]} Bg7 {[%emt 0:00:00]} 9. Qc1 {
[%emt 0:00:00]} h5 {[%emt 0:00:00]} 10. Nf3 {[%emt 0:00:00]} Nh7 {[%emt 0:00:
00]} 11. g3 {[%emt 0:00:00]} O-O {[%emt 0:00:00]} 12. Bg2 {[%emt 0:00:00]} a6 {
[%emt 0:00:00]} 13. O-O {[%emt 0:00:00]} Nd7 {[%emt 0:00:00]} 14. a4 {[%emt 0:
00:00]} f5 {[%emt 0:00:00]} 15. Nh4 {[%emt 0:00:00]} Qf6 {[%emt 0:00:00]} 16.
exf5 {[%emt 0:00:00]} gxf5 {[%emt 0:00:00]} 17. f4 {[%emt 0:00:00]} exf4 {
[%emt 0:00:00]} 18. Bxf4 {[%emt 0:00:00]} Nb6 {[%emt 0:00:00]} 19. Nd1 {
[%emt 0:00:00]} a5 {[%emt 0:00:00]} 20. Ra2 {[%emt 0:00:00]} Bd7 {[%emt 0:00:
00]} 21. b3 {[%emt 0:00:00]} Rae8 {[%emt 0:00:00]} 22. Bf3 {[%emt 0:00:00]}
Qd4+ {[%emt 0:00:00]} 23. Nf2 {[%emt 0:00:00]} Be5 {[%emt 0:01:25]} 24. Be3 {
[%emt 0:00:00]} Qc3 {[%emt 0:00:08]} 25. Qxc3 {[%emt 0:00:00]} Bxc3 {[%emt 0:
00:02]} 26. Bf4 {[%emt 0:00:00]} Be5 {[%emt 0:06:52]} 27. Bxh5 {[%emt 0:00:00]}
Bxf4 {[%emt 0:01:04]} 28. Bxe8 {[%emt 0:00:00]} Rxe8 {[%emt 0:00:02]} 29. gxf4
{[%emt 0:00:02]} Re3 {[%emt 0:00:02]} 30. Rb1 {[%emt 0:00:59]} Nf6 {[%emt 0:00:
32]} 31. Ng2 {[%emt 0:00:06]} Rc3 {[%emt 0:02:03]} 32. Nd1 {[%emt 0:07:27]} Rh3
{[%emt 0:03:32]} 33. Re2 {[%emt 0:01:36]} Rh8 {[%emt 0:00:58]} 34. Nc3 {
[%emt 0:01:10]} Na8 {[%emt 0:00:23]} 35. Nb5 {[%emt 0:01:26]} Ne4 {[%emt 0:00:
07]} 36. Ne3 {[%emt 0:00:32]} Kf7 {[%emt 0:00:47]} 37. Rbe1 {[%emt 0:00:16]}
Nb6 {[%emt 0:00:38]} 38. Nxf5 {[%emt 0:01:05]} Bxf5 {[%emt 0:00:47]} 39. Rxe4 {
[%emt 0:00:04]} Bxe4 {[%emt 0:00:21]} 40. Nxd6+ {[%emt 0:00:03]} Kf8 {[%emt 0:
00:27]} 41. Rxe4 {[%emt 0:00:42]} Rh3 {[%emt 0:00:07]} 42. Re8+ {[%emt 0:00:12]
} Kg7 {[%emt 0:00:01]} 43. Re7+ {[%emt 0:00:27]} Kf6 {[%emt 0:01:43]} 44. Re6+
{[%emt 0:00:05]} 1-0

[Event "Moscow-Open 2021_A"]
[Site "Moscow, Russia"]
[Date "2021.02.25"]
[Round "6.5"]
[White "Savitskiy, Sergey"]
[Black "Lobanov, Sergei"]
[Result "1/2-1/2"]
[ECO "C48"]
[WhiteElo "2427"]
[BlackElo "2516"]
[Annotator "zimin"]
[PlyCount "40"]
[EventDate "2021.??.??"]
[TimeControl "90+30"]
[WhiteClock "0:42:29"]
[BlackClock "1:04:17"]

{[%evp 0,40,35,28,14,10,19,11,21,21,34,18,33,7,16,-2,15,-24,26,-3,-10,-10,0,2,
2,12,0,1,-12,-2,-5,-5,-9,-2,-12,-10,-2,-12,-10,-12,-10,-12,-10]} 1. e4 {
[%emt 0:00:00]} e5 {[%emt 0:00:00]} 2. Nf3 {[%emt 0:00:00]} Nc6 {[%emt 0:00:00]
} 3. Nc3 {[%emt 0:00:00]} Nf6 {[%emt 0:00:00]} 4. Bb5 {[%emt 0:00:00]} Bd6 {
[%emt 0:00:00]} 5. O-O {[%emt 0:00:00]} O-O {[%emt 0:00:00]} 6. Re1 {[%emt 0:
00:00]} Re8 {[%emt 0:00:00]} 7. h3 {[%emt 0:00:00]} a6 {[%emt 0:00:00]} 8. Bc4
{[%emt 0:00:00]} Bc5 {[%emt 0:00:00]} 9. a4 {[%emt 0:00:00]} d6 {[%emt 0:00:00]
} 10. d3 {[%emt 0:00:00]} h6 {[%emt 0:00:00]} 11. Be3 {[%emt 0:00:00]} Bxe3 {
[%emt 0:00:00]} 12. fxe3 {[%emt 0:00:00]} Be6 {[%emt 0:00:00]} 13. Bxe6 {
[%emt 0:00:00]} fxe6 {[%emt 0:00:00]} 14. Qd2 {[%emt 0:00:00]} Rf8 {[%emt 0:00:
00]} 15. Qf2 {[%emt 0:00:00]} Qe8 {[%emt 0:00:00]} 16. Qg3 {[%emt 0:00:00]} Nh5
{[%emt 0:00:00]} 17. Qg4 {[%emt 0:00:00]} Nf6 {[%emt 0:00:00]} 18. Qg3 {
[%emt 0:00:00]} Nh5 {[%emt 0:00:00]} 19. Qg4 {[%emt 0:00:00]} Nf6 {[%emt 0:00:
00]} 20. Qg3 {[%emt 0:00:00]} Nh5 {[%emt 0:00:00]} 1/2-1/2

[Event "Moscow-Open 2021_A"]
[Site "Moscow, Russia"]
[Date "2021.02.25"]
[Round "6.6"]
[White "Faizrakhmanov, Ramil"]
[Black "Badelka, Olga"]
[Result "1/2-1/2"]
[ECO "D27"]
[WhiteElo "2476"]
[BlackElo "2428"]
[Annotator "zimin"]
[PlyCount "102"]
[EventDate "2021.??.??"]
[TimeControl "90+30"]
[WhiteClock "0:14:20"]
[BlackClock "0:02:48"]

{[%evp 0,50,35,35,13,-14,18,18,28,35,56,59,63,40,60,43,48,47,72,82,75,62,91,90,
86,93,88,81,77,87,81,78,112,34,80,40,50,21,23,12,27,5,14,6,6,15,20,17,11,9,33,
-13,-9]} 1. d4 {[%emt 0:00:00]} d5 {[%emt 0:00:00]} 2. c4 {[%emt 0:00:00]} dxc4
{[%emt 0:00:00]} 3. e3 {[%emt 0:00:00]} Nf6 {[%emt 0:00:00]} 4. Bxc4 {[%emt 0:
00:00]} e6 {[%emt 0:00:00]} 5. Nf3 {[%emt 0:00:00]} a6 {[%emt 0:00:00]} 6. O-O
{[%emt 0:00:00]} c5 {[%emt 0:00:00]} 7. Bb3 {[%emt 0:00:00]} Nc6 {[%emt 0:00:
00]} 8. Nc3 {[%emt 0:00:00]} Be7 {[%emt 0:00:00]} 9. dxc5 {[%emt 0:00:00]} Bxc5
{[%emt 0:00:00]} 10. Qxd8+ {[%emt 0:00:00]} Kxd8 {[%emt 0:00:00]} 11. Bd2 {
[%emt 0:00:00]} Ke7 {[%emt 0:00:00]} 12. Rac1 {[%emt 0:00:00]} Ba7 {[%emt 0:00:
00]} 13. Ng5 {[%emt 0:00:00]} Rd8 {[%emt 0:00:00]} 14. Rfd1 {[%emt 0:00:00]}
Bd7 {[%emt 0:00:00]} 15. Nce4 {[%emt 0:00:00]} Nxe4 {[%emt 0:00:00]} 16. Nxe4 {
[%emt 0:00:00]} Be8 {[%emt 0:00:00]} 17. Kf1 {[%emt 0:00:00]} Rac8 {[%emt 0:00:
00]} 18. Ke2 {[%emt 0:00:00]} f6 {[%emt 0:00:00]} 19. f3 {[%emt 0:00:00]} e5 {
[%emt 0:00:00]} 20. Be1 {[%emt 0:00:00]} Bg6 {[%emt 0:00:00]} 21. h4 {[%emt 0:
00:00]} Rxd1 {[%emt 0:00:00]} 22. Rxd1 {[%emt 0:00:00]} Rd8 {[%emt 0:00:00]}
23. Rxd8 {[%emt 0:00:00]} Kxd8 {[%emt 0:00:00]} 24. Ng3 {[%emt 0:00:00]} h5 {
[%emt 0:00:00]} 25. a3 {[%emt 0:00:00]} Kd7 {[%emt 0:00:00]} 26. Bd5 {[%emt 0:
00:00]} Kd6 {[%emt 0:00:00]} 27. Be4 {[%emt 0:00:00]} Bxe4 {[%emt 0:00:00]} 28.
Nxe4+ {[%emt 0:00:00]} Kd5 {[%emt 0:01:04]} 29. Kd3 {[%emt 0:00:00]} f5 {
[%emt 0:03:03]} 30. Nc3+ {[%emt 0:00:00]} Ke6 {[%emt 0:00:04]} 31. e4 {[%emt 0:
00:00]} g6 {[%emt 0:00:56]} 32. Ne2 {[%emt 0:00:00]} f4 {[%emt 0:04:07]} 33. a4
{[%emt 0:00:00]} Kd6 {[%emt 0:03:36]} 34. Kc4 {[%emt 0:00:00]} Be3 {[%emt 0:03:
17]} 35. b4 {[%emt 0:00:00]} Na7 {[%emt 0:01:33]} 36. Kd3 {[%emt 0:00:00]} b5 {
[%emt 0:00:39]} 37. axb5 {[%emt 0:00:00]} axb5 {[%emt 0:00:02]} 38. Nc3 {
[%emt 0:00:00]} Bd4 {[%emt 0:00:03]} 39. Nd5 {[%emt 0:00:00]} Nc6 {[%emt 0:00:
21]} 40. g3 {[%emt 0:00:00]} fxg3 {[%emt 0:00:09]} 41. Bxg3 {[%emt 0:00:00]}
Ne7 {[%emt 0:01:20]} 42. Nf6 {[%emt 0:00:04]} Nc6 {[%emt 0:00:13]} 43. Be1 {
[%emt 0:00:23]} Bg1 {[%emt 0:01:09]} 44. Nd5 {[%emt 0:01:12]} Bd4 {[%emt 0:01:
18]} 45. f4 {[%emt 0:01:36]} Ne7 {[%emt 0:00:06]} 46. Nf6 {[%emt 0:02:43]} Ke6
{[%emt 0:00:27]} 47. Nh7 {[%emt 0:00:20]} Nc6 {[%emt 0:00:20]} 48. Ng5+ {
[%emt 0:02:21]} Kf6 {[%emt 0:00:11]} 49. Nh7+ {[%emt 0:02:40]} Kg7 {[%emt 0:00:
11]} 50. Ng5 {[%emt 0:00:06]} Kf6 {[%emt 0:00:00]} 51. Nh7+ {[%emt 0:01:15]}
Kg7 {[%emt 0:00:03]} 1/2-1/2